{"text_format":"1","workbook":"xlsx","n_sheets":5,"sheets":["přihlášení","sys_tab","Tabulky","Pavouk","Pořadí"],"not_rendered":{"charts":0,"images":1,"macros":1,"external_links":0,"defined_names":4,"comments":0,"pivot_tables":0},"unopened":[],"bounds":{"document_bytes":16777216,"sheet_cells":100000,"rows_first":2000,"rows_last":500,"rows_between":2000,"halvings":0,"cell_chars":16384,"cell_head_chars":4096},"cells_cut":0,"cells_raw":0,"read":"whole","date_system":"1900"}

{"sheet":"přihlášení","index":0,"n_rows":15,"n_cols":16,"rows_kept":15,"cut":false,"hidden":false,"merged":[]}
["# hráče","jméno","nasazený",null,"Přehled",null,null,null,null,null,null,null,null,null,null,"21:10:00"]
[{"$f":"ROW()-1","v":1},"Jelínková Adéla",true,null,{"$f":"IF(OR(F4=11,F4<=7),\"Pozor, pro \"&F4&\" přihlášených hráčů není určená logika rozdělení!\",\"\")","v":""}]
[2,"Tománková Denisa",true,null,{"$f":"IF(rg_počet_nasazených>rg_pocet_skupin,\"Pozor, počet nasazených je vyšší, než počet skupin. Není připravená logika.\",\"\")","v":""}]
[3,"Pěnčíková Tereza",true,null,"počet přihlášených:",{"$f":"COUNTA(tbl_seznam_hracu[jméno])","v":14}]
[4,"Michna Lisa",false,null,"počet nasazených:",{"$f":"COUNTIFS(tbl_seznam_hracu[nasazený],TRUE)","v":3}]
[5,"Farajpourová Aináz",false,null,"počet skupin:",{"$f":"ROUNDDOWN(F4/4,0)","v":3}]
[6,"Mottlová Sofie",false,null,"počet 5-ti členných skupin:",{"$f":"MOD(F4,4)","v":2}]
[7,"Marešová Beata",false]
[8,"Gabrielová Edita Luisa",false]
[9,"Hadrabová Radka",false]
[10,"Krejčíková Viktorie",false]
[11,"Kolářová Viktorie",false,null,"Tabulka se seznamem hráčů musí být seřazena tak, že na začátku seznamu jsou nasazení hráči."]
[{"$f":"ROW()-1","v":12},"Halfarová Eva",false]
[{"$f":"ROW()-1","v":13},"Jiráková Sofie",false]
[14,"Slavíková Tereza",false]

{"sheet":"sys_tab","index":1,"n_rows":51,"n_cols":10,"rows_kept":51,"cut":false,"hidden":false,"merged":[]}
["pozice v tabulce","# nasazeneho","nasazeni","skupina","poradi 5. člena","obsazovana pozice","los","los nenasazenych","rank = # hrace","hrac"]
[1,1,{"$f":"IF(rg_počet_nasazených>=tbl_pozice[[#This Row],['# nasazeneho]],TRUE,FALSE)","v":true},1,null,{"$f":"IF(rg_pocet_skupin*5>=A2,TRUE,FALSE)","v":true},0.96246909444698259,{"$f":"IF(AND(tbl_pozice[[#This Row],[obsazovana pozice]],NOT(tbl_pozice[[#This Row],[nasazeni]])),tbl_pozice[[#This Row],[los]],0)","v":0},{"$f":"IF(tbl_pozice[[#This Row],[obsazovana pozice]],IF(tbl_pozice[[#This Row],[nasazeni]],tbl_pozice[[#This Row],['# nasazeneho]],RANK(tbl_pozice[[#This Row],[los nenasazenych]],tbl_pozice[los nenasazenych])+rg_počet_nasazených),0)","v":1},{"$f":"IFERROR(VLOOKUP(tbl_pozice[[#This Row],[rank = '# hrace]],tbl_seznam_hracu[],2,0),0)","v":"Jelínková Adéla"}]
[2,null,false,1,null,{"$f":"IF(rg_pocet_skupin*5>=A3,TRUE,FALSE)","v":true},0.69745771910103538,{"$f":"IF(AND(tbl_pozice[[#This Row],[obsazovana pozice]],NOT(tbl_pozice[[#This Row],[nasazeni]])),tbl_pozice[[#This Row],[los]],0)","v":0.69745771910103538},{"$f":"IF(tbl_pozice[[#This Row],[obsazovana pozice]],IF(tbl_pozice[[#This Row],[nasazeni]],tbl_pozice[[#This Row],['# nasazeneho]],RANK(tbl_pozice[[#This Row],[los nenasazenych]],tbl_pozice[los nenasazenych])+rg_počet_nasazených),0)","v":7},{"$f":"IFERROR(VLOOKUP(tbl_pozice[[#This Row],[rank = '# hrace]],tbl_seznam_hracu[],2,0),0)","v":"Marešová Beata"}]
[3,null,false,1,null,{"$f":"IF(rg_pocet_skupin*5>=A4,TRUE,FALSE)","v":true},4.4600591877744789E-3,{"$f":"IF(AND(tbl_pozice[[#This Row],[obsazovana pozice]],NOT(tbl_pozice[[#This Row],[nasazeni]])),tbl_pozice[[#This Row],[los]],0)","v":4.4600591877744789E-3},{"$f":"IF(tbl_pozice[[#This Row],[obsazovana pozice]],IF(tbl_pozice[[#This Row],[nasazeni]],tbl_pozice[[#This Row],['# nasazeneho]],RANK(tbl_pozice[[#This Row],[los nenasazenych]],tbl_pozice[los nenasazenych])+rg_počet_nasazených),0)","v":14},{"$f":"IFERROR(VLOOKUP(tbl_pozice[[#This Row],[rank = '# hrace]],tbl_seznam_hracu[],2,0),0)","v":"Slavíková Tereza"}]
[4,null,false,1,null,{"$f":"IF(rg_pocet_skupin*5>=A5,TRUE,FALSE)","v":true},5.6487359134607229E-2,{"$f":"IF(AND(tbl_pozice[[#This Row],[obsazovana pozice]],NOT(tbl_pozice[[#This Row],[nasazeni]])),tbl_pozice[[#This Row],[los]],0)","v":5.6487359134607229E-2},{"$f":"IF(tbl_pozice[[#This Row],[obsazovana pozice]],IF(tbl_pozice[[#This Row],[nasazeni]],tbl_pozice[[#This Row],['# nasazeneho]],RANK(tbl_pozice[[#This Row],[los nenasazenych]],tbl_pozice[los nenasazenych])+rg_počet_nasazených),0)","v":13},{"$f":"IFERROR(VLOOKUP(tbl_pozice[[#This Row],[rank = '# hrace]],tbl_seznam_hracu[],2,0),0)","v":"Jiráková Sofie"}]
[5,null,false,1,{"$f":"IF(tbl_pozice[[#This Row],[skupina]]<=rg_pocet_skupin,rg_pocet_skupin-tbl_pozice[[#This Row],[skupina]]+1,\"N/A\")","v":3},{"$f":"IF(rg_počet_5_ti_členných_skupin>=E6,TRUE,FALSE)","v":false},0.17435009537196056,{"$f":"IF(AND(tbl_pozice[[#This Row],[obsazovana pozice]],NOT(tbl_pozice[[#This Row],[nasazeni]])),tbl_pozice[[#This Row],[los]],0)","v":0},{"$f":"IF(tbl_pozice[[#This Row],[obsazovana pozice]],IF(tbl_pozice[[#This Row],[nasazeni]],tbl_pozice[[#This Row],['# nasazeneho]],RANK(tbl_pozice[[#This Row],[los nenasazenych]],tbl_pozice[los nenasazenych])+rg_počet_nasazených),0)","v":0},{"$f":"IFERROR(VLOOKUP(tbl_pozice[[#This Row],[rank = '# hrace]],tbl_seznam_hracu[],2,0),0)","v":0}]
[6,2,{"$f":"IF(rg_počet_nasazených>=tbl_pozice[[#This Row],['# nasazeneho]],TRUE,FALSE)","v":true},2,null,{"$f":"IF(rg_pocet_skupin*5>=A7,TRUE,FALSE)","v":true},0.966856797602753,{"$f":"IF(AND(tbl_pozice[[#This Row],[obsazovana pozice]],NOT(tbl_pozice[[#This Row],[nasazeni]])),tbl_pozice[[#This Row],[los]],0)","v":0},{"$f":"IF(tbl_pozice[[#This Row],[obsazovana pozice]],IF(tbl_pozice[[#This Row],[nasazeni]],tbl_pozice[[#This Row],['# nasazeneho]],RANK(tbl_pozice[[#This Row],[los nenasazenych]],tbl_pozice[los nenasazenych])+rg_počet_nasazených),0)","v":2},{"$f":"IFERROR(VLOOKUP(tbl_pozice[[#This Row],[rank = '# hrace]],tbl_seznam_hracu[],2,0),0)","v":"Tománková Denisa"}]
[7,null,false,2,null,{"$f":"IF(rg_pocet_skupin*5>=A8,TRUE,FALSE)","v":true},0.82160517881933159,{"$f":"IF(AND(tbl_pozice[[#This Row],[obsazovana pozice]],NOT(tbl_pozice[[#This Row],[nasazeni]])),tbl_pozice[[#This Row],[los]],0)","v":0.82160517881933159},{"$f":"IF(tbl_pozice[[#This Row],[obsazovana pozice]],IF(tbl_pozice[[#This Row],[nasazeni]],tbl_pozice[[#This Row],['# nasazeneho]],RANK(tbl_pozice[[#This Row],[los nenasazenych]],tbl_pozice[los nenasazenych])+rg_počet_nasazených),0)","v":4},{"$f":"IFERROR(VLOOKUP(tbl_pozice[[#This Row],[rank = '# hrace]],tbl_seznam_hracu[],2,0),0)","v":"Michna Lisa"}]
[8,null,false,2,null,{"$f":"IF(rg_pocet_skupin*5>=A9,TRUE,FALSE)","v":true},0.4562732769894936,{"$f":"IF(AND(tbl_pozice[[#This Row],[obsazovana pozice]],NOT(tbl_pozice[[#This Row],[nasazeni]])),tbl_pozice[[#This Row],[los]],0)","v":0.4562732769894936},{"$f":"IF(tbl_pozice[[#This Row],[obsazovana pozice]],IF(tbl_pozice[[#This Row],[nasazeni]],tbl_pozice[[#This Row],['# nasazeneho]],RANK(tbl_pozice[[#This Row],[los nenasazenych]],tbl_pozice[los nenasazenych])+rg_počet_nasazených),0)","v":11},{"$f":"IFERROR(VLOOKUP(tbl_pozice[[#This Row],[rank = '# hrace]],tbl_seznam_hracu[],2,0),0)","v":"Kolářová Viktorie"}]
[9,null,false,2,null,{"$f":"IF(rg_pocet_skupin*5>=A10,TRUE,FALSE)","v":true},0.48009226373703917,{"$f":"IF(AND(tbl_pozice[[#This Row],[obsazovana pozice]],NOT(tbl_pozice[[#This Row],[nasazeni]])),tbl_pozice[[#This Row],[los]],0)","v":0.48009226373703917},{"$f":"IF(tbl_pozice[[#This Row],[obsazovana pozice]],IF(tbl_pozice[[#This Row],[nasazeni]],tbl_pozice[[#This Row],['# nasazeneho]],RANK(tbl_pozice[[#This Row],[los nenasazenych]],tbl_pozice[los nenasazenych])+rg_počet_nasazených),0)","v":10},{"$f":"IFERROR(VLOOKUP(tbl_pozice[[#This Row],[rank = '# hrace]],tbl_seznam_hracu[],2,0),0)","v":"Krejčíková Viktorie"}]
[10,null,false,2,{"$f":"IF(tbl_pozice[[#This Row],[skupina]]<=rg_pocet_skupin,rg_pocet_skupin-tbl_pozice[[#This Row],[skupina]]+1,\"N/A\")","v":2},{"$f":"IF(rg_počet_5_ti_členných_skupin>=E11,TRUE,FALSE)","v":true},0.71970157655284239,{"$f":"IF(AND(tbl_pozice[[#This Row],[obsazovana pozice]],NOT(tbl_pozice[[#This Row],[nasazeni]])),tbl_pozice[[#This Row],[los]],0)","v":0.71970157655284239},{"$f":"IF(tbl_pozice[[#This Row],[obsazovana pozice]],IF(tbl_pozice[[#This Row],[nasazeni]],tbl_pozice[[#This Row],['# nasazeneho]],RANK(tbl_pozice[[#This Row],[los nenasazenych]],tbl_pozice[los nenasazenych])+rg_počet_nasazených),0)","v":6},{"$f":"IFERROR(VLOOKUP(tbl_pozice[[#This Row],[rank = '# hrace]],tbl_seznam_hracu[],2,0),0)","v":"Mottlová Sofie"}]
[11,3,{"$f":"IF(rg_počet_nasazených>=tbl_pozice[[#This Row],['# nasazeneho]],TRUE,FALSE)","v":true},3,null,{"$f":"IF(rg_pocet_skupin*5>=A12,TRUE,FALSE)","v":true},0.24667980511741083,{"$f":"IF(AND(tbl_pozice[[#This Row],[obsazovana pozice]],NOT(tbl_pozice[[#This Row],[nasazeni]])),tbl_pozice[[#This Row],[los]],0)","v":0},{"$f":"IF(tbl_pozice[[#This Row],[obsazovana pozice]],IF(tbl_pozice[[#This Row],[nasazeni]],tbl_pozice[[#This Row],['# nasazeneho]],RANK(tbl_pozice[[#This Row],[los nenasazenych]],tbl_pozice[los nenasazenych])+rg_počet_nasazených),0)","v":3},{"$f":"IFERROR(VLOOKUP(tbl_pozice[[#This Row],[rank = '# hrace]],tbl_seznam_hracu[],2,0),0)","v":"Pěnčíková Tereza"}]
[12,null,false,3,null,{"$f":"IF(rg_pocet_skupin*5>=A13,TRUE,FALSE)","v":true},0.50950749936248185,{"$f":"IF(AND(tbl_pozice[[#This Row],[obsazovana pozice]],NOT(tbl_pozice[[#This Row],[nasazeni]])),tbl_pozice[[#This Row],[los]],0)","v":0.50950749936248185},{"$f":"IF(tbl_pozice[[#This Row],[obsazovana pozice]],IF(tbl_pozice[[#This Row],[nasazeni]],tbl_pozice[[#This Row],['# nasazeneho]],RANK(tbl_pozice[[#This Row],[los nenasazenych]],tbl_pozice[los nenasazenych])+rg_počet_nasazených),0)","v":9},{"$f":"IFERROR(VLOOKUP(tbl_pozice[[#This Row],[rank = '# hrace]],tbl_seznam_hracu[],2,0),0)","v":"Hadrabová Radka"}]
[13,null,false,3,null,{"$f":"IF(rg_pocet_skupin*5>=A14,TRUE,FALSE)","v":true},0.62000851950440872,{"$f":"IF(AND(tbl_pozice[[#This Row],[obsazovana pozice]],NOT(tbl_pozice[[#This Row],[nasazeni]])),tbl_pozice[[#This Row],[los]],0)","v":0.62000851950440872},{"$f":"IF(tbl_pozice[[#This Row],[obsazovana pozice]],IF(tbl_pozice[[#This Row],[nasazeni]],tbl_pozice[[#This Row],['# nasazeneho]],RANK(tbl_pozice[[#This Row],[los nenasazenych]],tbl_pozice[los nenasazenych])+rg_počet_nasazených),0)","v":8},{"$f":"IFERROR(VLOOKUP(tbl_pozice[[#This Row],[rank = '# hrace]],tbl_seznam_hracu[],2,0),0)","v":"Gabrielová Edita Luisa"}]
[14,null,false,3,null,{"$f":"IF(rg_pocet_skupin*5>=A15,TRUE,FALSE)","v":true},6.982590101696029E-2,{"$f":"IF(AND(tbl_pozice[[#This Row],[obsazovana pozice]],NOT(tbl_pozice[[#This Row],[nasazeni]])),tbl_pozice[[#This Row],[los]],0)","v":6.982590101696029E-2},{"$f":"IF(tbl_pozice[[#This Row],[obsazovana pozice]],IF(tbl_pozice[[#This Row],[nasazeni]],tbl_pozice[[#This Row],['# nasazeneho]],RANK(tbl_pozice[[#This Row],[los nenasazenych]],tbl_pozice[los nenasazenych])+rg_počet_nasazených),0)","v":12},{"$f":"IFERROR(VLOOKUP(tbl_pozice[[#This Row],[rank = '# hrace]],tbl_seznam_hracu[],2,0),0)","v":"Halfarová Eva"}]
[15,null,false,3,{"$f":"IF(tbl_pozice[[#This Row],[skupina]]<=rg_pocet_skupin,rg_pocet_skupin-tbl_pozice[[#This Row],[skupina]]+1,\"N/A\")","v":1},{"$f":"IF(rg_počet_5_ti_členných_skupin>=E16,TRUE,FALSE)","v":true},0.80597758140963394,{"$f":"IF(AND(tbl_pozice[[#This Row],[obsazovana pozice]],NOT(tbl_pozice[[#This Row],[nasazeni]])),tbl_pozice[[#This Row],[los]],0)","v":0.80597758140963394},{"$f":"IF(tbl_pozice[[#This Row],[obsazovana pozice]],IF(tbl_pozice[[#This Row],[nasazeni]],tbl_pozice[[#This Row],['# nasazeneho]],RANK(tbl_pozice[[#This Row],[los nenasazenych]],tbl_pozice[los nenasazenych])+rg_počet_nasazených),0)","v":5},{"$f":"IFERROR(VLOOKUP(tbl_pozice[[#This Row],[rank = '# hrace]],tbl_seznam_hracu[],2,0),0)","v":"Farajpourová Aináz"}]
[16,4,{"$f":"IF(rg_počet_nasazených>=tbl_pozice[[#This Row],['# nasazeneho]],TRUE,FALSE)","v":false},4,null,{"$f":"IF(rg_pocet_skupin*5>=A17,TRUE,FALSE)","v":false},0.21198694014620445,{"$f":"IF(AND(tbl_pozice[[#This Row],[obsazovana pozice]],NOT(tbl_pozice[[#This Row],[nasazeni]])),tbl_pozice[[#This Row],[los]],0)","v":0},{"$f":"IF(tbl_pozice[[#This Row],[obsazovana pozice]],IF(tbl_pozice[[#This Row],[nasazeni]],tbl_pozice[[#This Row],['# nasazeneho]],RANK(tbl_pozice[[#This Row],[los nenasazenych]],tbl_pozice[los nenasazenych])+rg_počet_nasazených),0)","v":0},{"$f":"IFERROR(VLOOKUP(tbl_pozice[[#This Row],[rank = '# hrace]],tbl_seznam_hracu[],2,0),0)","v":0}]
[17,null,false,4,null,{"$f":"IF(rg_pocet_skupin*5>=A18,TRUE,FALSE)","v":false},0.64775940859639392,{"$f":"IF(AND(tbl_pozice[[#This Row],[obsazovana pozice]],NOT(tbl_pozice[[#This Row],[nasazeni]])),tbl_pozice[[#This Row],[los]],0)","v":0},{"$f":"IF(tbl_pozice[[#This Row],[obsazovana pozice]],IF(tbl_pozice[[#This Row],[nasazeni]],tbl_pozice[[#This Row],['# nasazeneho]],RANK(tbl_pozice[[#This Row],[los nenasazenych]],tbl_pozice[los nenasazenych])+rg_počet_nasazených),0)","v":0},{"$f":"IFERROR(VLOOKUP(tbl_pozice[[#This Row],[rank = '# hrace]],tbl_seznam_hracu[],2,0),0)","v":0}]
[18,null,false,4,null,{"$f":"IF(rg_pocet_skupin*5>=A19,TRUE,FALSE)","v":false},0.41330257043396434,{"$f":"IF(AND(tbl_pozice[[#This Row],[obsazovana pozice]],NOT(tbl_pozice[[#This Row],[nasazeni]])),tbl_pozice[[#This Row],[los]],0)","v":0},{"$f":"IF(tbl_pozice[[#This Row],[obsazovana pozice]],IF(tbl_pozice[[#This Row],[nasazeni]],tbl_pozice[[#This Row],['# nasazeneho]],RANK(tbl_pozice[[#This Row],[los nenasazenych]],tbl_pozice[los nenasazenych])+rg_počet_nasazených),0)","v":0},{"$f":"IFERROR(VLOOKUP(tbl_pozice[[#This Row],[rank = '# hrace]],tbl_seznam_hracu[],2,0),0)","v":0}]
[19,null,false,4,null,{"$f":"IF(rg_pocet_skupin*5>=A20,TRUE,FALSE)","v":false},0.36378679375182787,{"$f":"IF(AND(tbl_pozice[[#This Row],[obsazovana pozice]],NOT(tbl_pozice[[#This Row],[nasazeni]])),tbl_pozice[[#This Row],[los]],0)","v":0},{"$f":"IF(tbl_pozice[[#This Row],[obsazovana pozice]],IF(tbl_pozice[[#This Row],[nasazeni]],tbl_pozice[[#This Row],['# nasazeneho]],RANK(tbl_pozice[[#This Row],[los nenasazenych]],tbl_pozice[los nenasazenych])+rg_počet_nasazených),0)","v":0},{"$f":"IFERROR(VLOOKUP(tbl_pozice[[#This Row],[rank = '# hrace]],tbl_seznam_hracu[],2,0),0)","v":0}]
[20,null,false,4,{"$f":"IF(tbl_pozice[[#This Row],[skupina]]<=rg_pocet_skupin,rg_pocet_skupin-tbl_pozice[[#This Row],[skupina]]+1,\"N/A\")","v":"N/A"},{"$f":"IF(rg_počet_5_ti_členných_skupin>=E21,TRUE,FALSE)","v":false},0.25405115176828597,{"$f":"IF(AND(tbl_pozice[[#This Row],[obsazovana pozice]],NOT(tbl_pozice[[#This Row],[nasazeni]])),tbl_pozice[[#This Row],[los]],0)","v":0},{"$f":"IF(tbl_pozice[[#This Row],[obsazovana pozice]],IF(tbl_pozice[[#This Row],[nasazeni]],tbl_pozice[[#This Row],['# nasazeneho]],RANK(tbl_pozice[[#This Row],[los nenasazenych]],tbl_pozice[los nenasazenych])+rg_počet_nasazených),0)","v":0},{"$f":"IFERROR(VLOOKUP(tbl_pozice[[#This Row],[rank = '# hrace]],tbl_seznam_hracu[],2,0),0)","v":0}]
[21,5,{"$f":"IF(rg_počet_nasazených>=tbl_pozice[[#This Row],['# nasazeneho]],TRUE,FALSE)","v":false},5,null,{"$f":"IF(rg_pocet_skupin*5>=A22,TRUE,FALSE)","v":false},9.4189504122253243E-2,{"$f":"IF(AND(tbl_pozice[[#This Row],[obsazovana pozice]],NOT(tbl_pozice[[#This Row],[nasazeni]])),tbl_pozice[[#This Row],[los]],0)","v":0},{"$f":"IF(tbl_pozice[[#This Row],[obsazovana pozice]],IF(tbl_pozice[[#This Row],[nasazeni]],tbl_pozice[[#This Row],['# nasazeneho]],RANK(tbl_pozice[[#This Row],[los nenasazenych]],tbl_pozice[los nenasazenych])+rg_počet_nasazených),0)","v":0},{"$f":"IFERROR(VLOOKUP(tbl_pozice[[#This Row],[rank = '# hrace]],tbl_seznam_hracu[],2,0),0)","v":0}]
[22,null,false,5,null,{"$f":"IF(rg_pocet_skupin*5>=A23,TRUE,FALSE)","v":false},0.19108694230086243,{"$f":"IF(AND(tbl_pozice[[#This Row],[obsazovana pozice]],NOT(tbl_pozice[[#This Row],[nasazeni]])),tbl_pozice[[#This Row],[los]],0)","v":0},{"$f":"IF(tbl_pozice[[#This Row],[obsazovana pozice]],IF(tbl_pozice[[#This Row],[nasazeni]],tbl_pozice[[#This Row],['# nasazeneho]],RANK(tbl_pozice[[#This Row],[los nenasazenych]],tbl_pozice[los nenasazenych])+rg_počet_nasazených),0)","v":0},{"$f":"IFERROR(VLOOKUP(tbl_pozice[[#This Row],[rank = '# hrace]],tbl_seznam_hracu[],2,0),0)","v":0}]
[23,null,false,5,null,{"$f":"IF(rg_pocet_skupin*5>=A24,TRUE,FALSE)","v":false},0.39459875814998502,{"$f":"IF(AND(tbl_pozice[[#This Row],[obsazovana pozice]],NOT(tbl_pozice[[#This Row],[nasazeni]])),tbl_pozice[[#This Row],[los]],0)","v":0},{"$f":"IF(tbl_pozice[[#This Row],[obsazovana pozice]],IF(tbl_pozice[[#This Row],[nasazeni]],tbl_pozice[[#This Row],['# nasazeneho]],RANK(tbl_pozice[[#This Row],[los nenasazenych]],tbl_pozice[los nenasazenych])+rg_počet_nasazených),0)","v":0},{"$f":"IFERROR(VLOOKUP(tbl_pozice[[#This Row],[rank = '# hrace]],tbl_seznam_hracu[],2,0),0)","v":0}]
[24,null,false,5,null,{"$f":"IF(rg_pocet_skupin*5>=A25,TRUE,FALSE)","v":false},0.87215362356755111,{"$f":"IF(AND(tbl_pozice[[#This Row],[obsazovana pozice]],NOT(tbl_pozice[[#This Row],[nasazeni]])),tbl_pozice[[#This Row],[los]],0)","v":0},{"$f":"IF(tbl_pozice[[#This Row],[obsazovana pozice]],IF(tbl_pozice[[#This Row],[nasazeni]],tbl_pozice[[#This Row],['# nasazeneho]],RANK(tbl_pozice[[#This Row],[los nenasazenych]],tbl_pozice[los nenasazenych])+rg_počet_nasazených),0)","v":0},{"$f":"IFERROR(VLOOKUP(tbl_pozice[[#This Row],[rank = '# hrace]],tbl_seznam_hracu[],2,0),0)","v":0}]
[25,null,false,5,{"$f":"IF(tbl_pozice[[#This Row],[skupina]]<=rg_pocet_skupin,rg_pocet_skupin-tbl_pozice[[#This Row],[skupina]]+1,\"N/A\")","v":"N/A"},{"$f":"IF(rg_počet_5_ti_členných_skupin>=E26,TRUE,FALSE)","v":false},0.73140964748728632,{"$f":"IF(AND(tbl_pozice[[#This Row],[obsazovana pozice]],NOT(tbl_pozice[[#This Row],[nasazeni]])),tbl_pozice[[#This Row],[los]],0)","v":0},{"$f":"IF(tbl_pozice[[#This Row],[obsazovana pozice]],IF(tbl_pozice[[#This Row],[nasazeni]],tbl_pozice[[#This Row],['# nasazeneho]],RANK(tbl_pozice[[#This Row],[los nenasazenych]],tbl_pozice[los nenasazenych])+rg_počet_nasazených),0)","v":0},{"$f":"IFERROR(VLOOKUP(tbl_pozice[[#This Row],[rank = '# hrace]],tbl_seznam_hracu[],2,0),0)","v":0}]
[26,6,{"$f":"IF(rg_počet_nasazených>=tbl_pozice[[#This Row],['# nasazeneho]],TRUE,FALSE)","v":false},6,null,{"$f":"IF(rg_pocet_skupin*5>=A27,TRUE,FALSE)","v":false},2.8256379849461166E-2,{"$f":"IF(AND(tbl_pozice[[#This Row],[obsazovana pozice]],NOT(tbl_pozice[[#This Row],[nasazeni]])),tbl_pozice[[#This Row],[los]],0)","v":0},{"$f":"IF(tbl_pozice[[#This Row],[obsazovana pozice]],IF(tbl_pozice[[#This Row],[nasazeni]],tbl_pozice[[#This Row],['# nasazeneho]],RANK(tbl_pozice[[#This Row],[los nenasazenych]],tbl_pozice[los nenasazenych])+rg_počet_nasazených),0)","v":0},{"$f":"IFERROR(VLOOKUP(tbl_pozice[[#This Row],[rank = '# hrace]],tbl_seznam_hracu[],2,0),0)","v":0}]
[27,null,false,6,null,{"$f":"IF(rg_pocet_skupin*5>=A28,TRUE,FALSE)","v":false},0.97071675207680175,{"$f":"IF(AND(tbl_pozice[[#This Row],[obsazovana pozice]],NOT(tbl_pozice[[#This Row],[nasazeni]])),tbl_pozice[[#This Row],[los]],0)","v":0},{"$f":"IF(tbl_pozice[[#This Row],[obsazovana pozice]],IF(tbl_pozice[[#This Row],[nasazeni]],tbl_pozice[[#This Row],['# nasazeneho]],RANK(tbl_pozice[[#This Row],[los nenasazenych]],tbl_pozice[los nenasazenych])+rg_počet_nasazených),0)","v":0},{"$f":"IFERROR(VLOOKUP(tbl_pozice[[#This Row],[rank = '# hrace]],tbl_seznam_hracu[],2,0),0)","v":0}]
[28,null,false,6,null,{"$f":"IF(rg_pocet_skupin*5>=A29,TRUE,FALSE)","v":false},0.34563729342593097,{"$f":"IF(AND(tbl_pozice[[#This Row],[obsazovana pozice]],NOT(tbl_pozice[[#This Row],[nasazeni]])),tbl_pozice[[#This Row],[los]],0)","v":0},{"$f":"IF(tbl_pozice[[#This Row],[obsazovana pozice]],IF(tbl_pozice[[#This Row],[nasazeni]],tbl_pozice[[#This Row],['# nasazeneho]],RANK(tbl_pozice[[#This Row],[los nenasazenych]],tbl_pozice[los nenasazenych])+rg_počet_nasazených),0)","v":0},{"$f":"IFERROR(VLOOKUP(tbl_pozice[[#This Row],[rank = '# hrace]],tbl_seznam_hracu[],2,0),0)","v":0}]
[29,null,false,6,null,{"$f":"IF(rg_pocet_skupin*5>=A30,TRUE,FALSE)","v":false},0.26280354855575683,{"$f":"IF(AND(tbl_pozice[[#This Row],[obsazovana pozice]],NOT(tbl_pozice[[#This Row],[nasazeni]])),tbl_pozice[[#This Row],[los]],0)","v":0},{"$f":"IF(tbl_pozice[[#This Row],[obsazovana pozice]],IF(tbl_pozice[[#This Row],[nasazeni]],tbl_pozice[[#This Row],['# nasazeneho]],RANK(tbl_pozice[[#This Row],[los nenasazenych]],tbl_pozice[los nenasazenych])+rg_počet_nasazených),0)","v":0},{"$f":"IFERROR(VLOOKUP(tbl_pozice[[#This Row],[rank = '# hrace]],tbl_seznam_hracu[],2,0),0)","v":0}]
[30,null,false,6,{"$f":"IF(tbl_pozice[[#This Row],[skupina]]<=rg_pocet_skupin,rg_pocet_skupin-tbl_pozice[[#This Row],[skupina]]+1,\"N/A\")","v":"N/A"},{"$f":"IF(rg_počet_5_ti_členných_skupin>=E31,TRUE,FALSE)","v":false},0.19028343933462732,{"$f":"IF(AND(tbl_pozice[[#This Row],[obsazovana pozice]],NOT(tbl_pozice[[#This Row],[nasazeni]])),tbl_pozice[[#This Row],[los]],0)","v":0},{"$f":"IF(tbl_pozice[[#This Row],[obsazovana pozice]],IF(tbl_pozice[[#This Row],[nasazeni]],tbl_pozice[[#This Row],['# nasazeneho]],RANK(tbl_pozice[[#This Row],[los nenasazenych]],tbl_pozice[los nenasazenych])+rg_počet_nasazených),0)","v":0},{"$f":"IFERROR(VLOOKUP(tbl_pozice[[#This Row],[rank = '# hrace]],tbl_seznam_hracu[],2,0),0)","v":0}]
[31,7,{"$f":"IF(rg_počet_nasazených>=tbl_pozice[[#This Row],['# nasazeneho]],TRUE,FALSE)","v":false},7,null,{"$f":"IF(rg_pocet_skupin*5>=A32,TRUE,FALSE)","v":false},0.71187155771052668,{"$f":"IF(AND(tbl_pozice[[#This Row],[obsazovana pozice]],NOT(tbl_pozice[[#This Row],[nasazeni]])),tbl_pozice[[#This Row],[los]],0)","v":0},{"$f":"IF(tbl_pozice[[#This Row],[obsazovana pozice]],IF(tbl_pozice[[#This Row],[nasazeni]],tbl_pozice[[#This Row],['# nasazeneho]],RANK(tbl_pozice[[#This Row],[los nenasazenych]],tbl_pozice[los nenasazenych])+rg_počet_nasazených),0)","v":0},{"$f":"IFERROR(VLOOKUP(tbl_pozice[[#This Row],[rank = '# hrace]],tbl_seznam_hracu[],2,0),0)","v":0}]
[32,null,false,7,null,{"$f":"IF(rg_pocet_skupin*5>=A33,TRUE,FALSE)","v":false},6.1161547157057128E-2,{"$f":"IF(AND(tbl_pozice[[#This Row],[obsazovana pozice]],NOT(tbl_pozice[[#This Row],[nasazeni]])),tbl_pozice[[#This Row],[los]],0)","v":0},{"$f":"IF(tbl_pozice[[#This Row],[obsazovana pozice]],IF(tbl_pozice[[#This Row],[nasazeni]],tbl_pozice[[#This Row],['# nasazeneho]],RANK(tbl_pozice[[#This Row],[los nenasazenych]],tbl_pozice[los nenasazenych])+rg_počet_nasazených),0)","v":0},{"$f":"IFERROR(VLOOKUP(tbl_pozice[[#This Row],[rank = '# hrace]],tbl_seznam_hracu[],2,0),0)","v":0}]
[33,null,false,7,null,{"$f":"IF(rg_pocet_skupin*5>=A34,TRUE,FALSE)","v":false},0.95976505318548988,{"$f":"IF(AND(tbl_pozice[[#This Row],[obsazovana pozice]],NOT(tbl_pozice[[#This Row],[nasazeni]])),tbl_pozice[[#This Row],[los]],0)","v":0},{"$f":"IF(tbl_pozice[[#This Row],[obsazovana pozice]],IF(tbl_pozice[[#This Row],[nasazeni]],tbl_pozice[[#This Row],['# nasazeneho]],RANK(tbl_pozice[[#This Row],[los nenasazenych]],tbl_pozice[los nenasazenych])+rg_počet_nasazených),0)","v":0},{"$f":"IFERROR(VLOOKUP(tbl_pozice[[#This Row],[rank = '# hrace]],tbl_seznam_hracu[],2,0),0)","v":0}]
[34,null,false,7,null,{"$f":"IF(rg_pocet_skupin*5>=A35,TRUE,FALSE)","v":false},0.67408908320287753,{"$f":"IF(AND(tbl_pozice[[#This Row],[obsazovana pozice]],NOT(tbl_pozice[[#This Row],[nasazeni]])),tbl_pozice[[#This Row],[los]],0)","v":0},{"$f":"IF(tbl_pozice[[#This Row],[obsazovana pozice]],IF(tbl_pozice[[#This Row],[nasazeni]],tbl_pozice[[#This Row],['# nasazeneho]],RANK(tbl_pozice[[#This Row],[los nenasazenych]],tbl_pozice[los nenasazenych])+rg_počet_nasazených),0)","v":0},{"$f":"IFERROR(VLOOKUP(tbl_pozice[[#This Row],[rank = '# hrace]],tbl_seznam_hracu[],2,0),0)","v":0}]
[35,null,false,7,{"$f":"IF(tbl_pozice[[#This Row],[skupina]]<=rg_pocet_skupin,rg_pocet_skupin-tbl_pozice[[#This Row],[skupina]]+1,\"N/A\")","v":"N/A"},{"$f":"IF(rg_počet_5_ti_členných_skupin>=E36,TRUE,FALSE)","v":false},0.85115675243664801,{"$f":"IF(AND(tbl_pozice[[#This Row],[obsazovana pozice]],NOT(tbl_pozice[[#This Row],[nasazeni]])),tbl_pozice[[#This Row],[los]],0)","v":0},{"$f":"IF(tbl_pozice[[#This Row],[obsazovana pozice]],IF(tbl_pozice[[#This Row],[nasazeni]],tbl_pozice[[#This Row],['# nasazeneho]],RANK(tbl_pozice[[#This Row],[los nenasazenych]],tbl_pozice[los nenasazenych])+rg_počet_nasazených),0)","v":0},{"$f":"IFERROR(VLOOKUP(tbl_pozice[[#This Row],[rank = '# hrace]],tbl_seznam_hracu[],2,0),0)","v":0}]
[36,8,{"$f":"IF(rg_počet_nasazených>=tbl_pozice[[#This Row],['# nasazeneho]],TRUE,FALSE)","v":false},8,null,{"$f":"IF(rg_pocet_skupin*5>=A37,TRUE,FALSE)","v":false},0.84195104895452255,{"$f":"IF(AND(tbl_pozice[[#This Row],[obsazovana pozice]],NOT(tbl_pozice[[#This Row],[nasazeni]])),tbl_pozice[[#This Row],[los]],0)","v":0},{"$f":"IF(tbl_pozice[[#This Row],[obsazovana pozice]],IF(tbl_pozice[[#This Row],[nasazeni]],tbl_pozice[[#This Row],['# nasazeneho]],RANK(tbl_pozice[[#This Row],[los nenasazenych]],tbl_pozice[los nenasazenych])+rg_počet_nasazených),0)","v":0},{"$f":"IFERROR(VLOOKUP(tbl_pozice[[#This Row],[rank = '# hrace]],tbl_seznam_hracu[],2,0),0)","v":0}]
[37,null,false,8,null,{"$f":"IF(rg_pocet_skupin*5>=A38,TRUE,FALSE)","v":false},0.95395340060415068,{"$f":"IF(AND(tbl_pozice[[#This Row],[obsazovana pozice]],NOT(tbl_pozice[[#This Row],[nasazeni]])),tbl_pozice[[#This Row],[los]],0)","v":0},{"$f":"IF(tbl_pozice[[#This Row],[obsazovana pozice]],IF(tbl_pozice[[#This Row],[nasazeni]],tbl_pozice[[#This Row],['# nasazeneho]],RANK(tbl_pozice[[#This Row],[los nenasazenych]],tbl_pozice[los nenasazenych])+rg_počet_nasazených),0)","v":0},{"$f":"IFERROR(VLOOKUP(tbl_pozice[[#This Row],[rank = '# hrace]],tbl_seznam_hracu[],2,0),0)","v":0}]
[38,null,false,8,null,{"$f":"IF(rg_pocet_skupin*5>=A39,TRUE,FALSE)","v":false},0.98341748051821776,{"$f":"IF(AND(tbl_pozice[[#This Row],[obsazovana pozice]],NOT(tbl_pozice[[#This Row],[nasazeni]])),tbl_pozice[[#This Row],[los]],0)","v":0},{"$f":"IF(tbl_pozice[[#This Row],[obsazovana pozice]],IF(tbl_pozice[[#This Row],[nasazeni]],tbl_pozice[[#This Row],['# nasazeneho]],RANK(tbl_pozice[[#This Row],[los nenasazenych]],tbl_pozice[los nenasazenych])+rg_počet_nasazených),0)","v":0},{"$f":"IFERROR(VLOOKUP(tbl_pozice[[#This Row],[rank = '# hrace]],tbl_seznam_hracu[],2,0),0)","v":0}]
[39,null,false,8,null,{"$f":"IF(rg_pocet_skupin*5>=A40,TRUE,FALSE)","v":false},0.53626112270177684,{"$f":"IF(AND(tbl_pozice[[#This Row],[obsazovana pozice]],NOT(tbl_pozice[[#This Row],[nasazeni]])),tbl_pozice[[#This Row],[los]],0)","v":0},{"$f":"IF(tbl_pozice[[#This Row],[obsazovana pozice]],IF(tbl_pozice[[#This Row],[nasazeni]],tbl_pozice[[#This Row],['# nasazeneho]],RANK(tbl_pozice[[#This Row],[los nenasazenych]],tbl_pozice[los nenasazenych])+rg_počet_nasazených),0)","v":0},{"$f":"IFERROR(VLOOKUP(tbl_pozice[[#This Row],[rank = '# hrace]],tbl_seznam_hracu[],2,0),0)","v":0}]
[40,null,false,8,{"$f":"IF(tbl_pozice[[#This Row],[skupina]]<=rg_pocet_skupin,rg_pocet_skupin-tbl_pozice[[#This Row],[skupina]]+1,\"N/A\")","v":"N/A"},{"$f":"IF(rg_počet_5_ti_členných_skupin>=E41,TRUE,FALSE)","v":false},0.93340066672461308,{"$f":"IF(AND(tbl_pozice[[#This Row],[obsazovana pozice]],NOT(tbl_pozice[[#This Row],[nasazeni]])),tbl_pozice[[#This Row],[los]],0)","v":0},{"$f":"IF(tbl_pozice[[#This Row],[obsazovana pozice]],IF(tbl_pozice[[#This Row],[nasazeni]],tbl_pozice[[#This Row],['# nasazeneho]],RANK(tbl_pozice[[#This Row],[los nenasazenych]],tbl_pozice[los nenasazenych])+rg_počet_nasazených),0)","v":0},{"$f":"IFERROR(VLOOKUP(tbl_pozice[[#This Row],[rank = '# hrace]],tbl_seznam_hracu[],2,0),0)","v":0}]
[41,9,{"$f":"IF(rg_počet_nasazených>=tbl_pozice[[#This Row],['# nasazeneho]],TRUE,FALSE)","v":false},9,null,{"$f":"IF(rg_pocet_skupin*5>=A42,TRUE,FALSE)","v":false},0.94540829933485537,{"$f":"IF(AND(tbl_pozice[[#This Row],[obsazovana pozice]],NOT(tbl_pozice[[#This Row],[nasazeni]])),tbl_pozice[[#This Row],[los]],0)","v":0},{"$f":"IF(tbl_pozice[[#This Row],[obsazovana pozice]],IF(tbl_pozice[[#This Row],[nasazeni]],tbl_pozice[[#This Row],['# nasazeneho]],RANK(tbl_pozice[[#This Row],[los nenasazenych]],tbl_pozice[los nenasazenych])+rg_počet_nasazených),0)","v":0},{"$f":"IFERROR(VLOOKUP(tbl_pozice[[#This Row],[rank = '# hrace]],tbl_seznam_hracu[],2,0),0)","v":0}]
[42,null,false,9,null,{"$f":"IF(rg_pocet_skupin*5>=A43,TRUE,FALSE)","v":false},7.3138423289414445E-2,{"$f":"IF(AND(tbl_pozice[[#This Row],[obsazovana pozice]],NOT(tbl_pozice[[#This Row],[nasazeni]])),tbl_pozice[[#This Row],[los]],0)","v":0},{"$f":"IF(tbl_pozice[[#This Row],[obsazovana pozice]],IF(tbl_pozice[[#This Row],[nasazeni]],tbl_pozice[[#This Row],['# nasazeneho]],RANK(tbl_pozice[[#This Row],[los nenasazenych]],tbl_pozice[los nenasazenych])+rg_počet_nasazených),0)","v":0},{"$f":"IFERROR(VLOOKUP(tbl_pozice[[#This Row],[rank = '# hrace]],tbl_seznam_hracu[],2,0),0)","v":0}]
[43,null,false,9,null,{"$f":"IF(rg_pocet_skupin*5>=A44,TRUE,FALSE)","v":false},0.10383768490339318,{"$f":"IF(AND(tbl_pozice[[#This Row],[obsazovana pozice]],NOT(tbl_pozice[[#This Row],[nasazeni]])),tbl_pozice[[#This Row],[los]],0)","v":0},{"$f":"IF(tbl_pozice[[#This Row],[obsazovana pozice]],IF(tbl_pozice[[#This Row],[nasazeni]],tbl_pozice[[#This Row],['# nasazeneho]],RANK(tbl_pozice[[#This Row],[los nenasazenych]],tbl_pozice[los nenasazenych])+rg_počet_nasazených),0)","v":0},{"$f":"IFERROR(VLOOKUP(tbl_pozice[[#This Row],[rank = '# hrace]],tbl_seznam_hracu[],2,0),0)","v":0}]
[44,null,false,9,null,{"$f":"IF(rg_pocet_skupin*5>=A45,TRUE,FALSE)","v":false},0.67769789746432185,{"$f":"IF(AND(tbl_pozice[[#This Row],[obsazovana pozice]],NOT(tbl_pozice[[#This Row],[nasazeni]])),tbl_pozice[[#This Row],[los]],0)","v":0},{"$f":"IF(tbl_pozice[[#This Row],[obsazovana pozice]],IF(tbl_pozice[[#This Row],[nasazeni]],tbl_pozice[[#This Row],['# nasazeneho]],RANK(tbl_pozice[[#This Row],[los nenasazenych]],tbl_pozice[los nenasazenych])+rg_počet_nasazených),0)","v":0},{"$f":"IFERROR(VLOOKUP(tbl_pozice[[#This Row],[rank = '# hrace]],tbl_seznam_hracu[],2,0),0)","v":0}]
[45,null,false,9,{"$f":"IF(tbl_pozice[[#This Row],[skupina]]<=rg_pocet_skupin,rg_pocet_skupin-tbl_pozice[[#This Row],[skupina]]+1,\"N/A\")","v":"N/A"},{"$f":"IF(rg_počet_5_ti_členných_skupin>=E46,TRUE,FALSE)","v":false},0.69276025008808806,{"$f":"IF(AND(tbl_pozice[[#This Row],[obsazovana pozice]],NOT(tbl_pozice[[#This Row],[nasazeni]])),tbl_pozice[[#This Row],[los]],0)","v":0},{"$f":"IF(tbl_pozice[[#This Row],[obsazovana pozice]],IF(tbl_pozice[[#This Row],[nasazeni]],tbl_pozice[[#This Row],['# nasazeneho]],RANK(tbl_pozice[[#This Row],[los nenasazenych]],tbl_pozice[los nenasazenych])+rg_počet_nasazených),0)","v":0},{"$f":"IFERROR(VLOOKUP(tbl_pozice[[#This Row],[rank = '# hrace]],tbl_seznam_hracu[],2,0),0)","v":0}]
[46,10,{"$f":"IF(rg_počet_nasazených>=tbl_pozice[[#This Row],['# nasazeneho]],TRUE,FALSE)","v":false},10,null,{"$f":"IF(rg_pocet_skupin*5>=A47,TRUE,FALSE)","v":false},0.55069076747605394,{"$f":"IF(AND(tbl_pozice[[#This Row],[obsazovana pozice]],NOT(tbl_pozice[[#This Row],[nasazeni]])),tbl_pozice[[#This Row],[los]],0)","v":0},{"$f":"IF(tbl_pozice[[#This Row],[obsazovana pozice]],IF(tbl_pozice[[#This Row],[nasazeni]],tbl_pozice[[#This Row],['# nasazeneho]],RANK(tbl_pozice[[#This Row],[los nenasazenych]],tbl_pozice[los nenasazenych])+rg_počet_nasazených),0)","v":0},{"$f":"IFERROR(VLOOKUP(tbl_pozice[[#This Row],[rank = '# hrace]],tbl_seznam_hracu[],2,0),0)","v":0}]
[47,null,false,10,null,{"$f":"IF(rg_pocet_skupin*5>=A48,TRUE,FALSE)","v":false},0.58049866785790616,{"$f":"IF(AND(tbl_pozice[[#This Row],[obsazovana pozice]],NOT(tbl_pozice[[#This Row],[nasazeni]])),tbl_pozice[[#This Row],[los]],0)","v":0},{"$f":"IF(tbl_pozice[[#This Row],[obsazovana pozice]],IF(tbl_pozice[[#This Row],[nasazeni]],tbl_pozice[[#This Row],['# nasazeneho]],RANK(tbl_pozice[[#This Row],[los nenasazenych]],tbl_pozice[los nenasazenych])+rg_počet_nasazených),0)","v":0},{"$f":"IFERROR(VLOOKUP(tbl_pozice[[#This Row],[rank = '# hrace]],tbl_seznam_hracu[],2,0),0)","v":0}]
[48,null,false,10,null,{"$f":"IF(rg_pocet_skupin*5>=A49,TRUE,FALSE)","v":false},0.85520533790472464,{"$f":"IF(AND(tbl_pozice[[#This Row],[obsazovana pozice]],NOT(tbl_pozice[[#This Row],[nasazeni]])),tbl_pozice[[#This Row],[los]],0)","v":0},{"$f":"IF(tbl_pozice[[#This Row],[obsazovana pozice]],IF(tbl_pozice[[#This Row],[nasazeni]],tbl_pozice[[#This Row],['# nasazeneho]],RANK(tbl_pozice[[#This Row],[los nenasazenych]],tbl_pozice[los nenasazenych])+rg_počet_nasazených),0)","v":0},{"$f":"IFERROR(VLOOKUP(tbl_pozice[[#This Row],[rank = '# hrace]],tbl_seznam_hracu[],2,0),0)","v":0}]
[49,null,false,10,null,{"$f":"IF(rg_pocet_skupin*5>=A50,TRUE,FALSE)","v":false},0.89236442958410467,{"$f":"IF(AND(tbl_pozice[[#This Row],[obsazovana pozice]],NOT(tbl_pozice[[#This Row],[nasazeni]])),tbl_pozice[[#This Row],[los]],0)","v":0},{"$f":"IF(tbl_pozice[[#This Row],[obsazovana pozice]],IF(tbl_pozice[[#This Row],[nasazeni]],tbl_pozice[[#This Row],['# nasazeneho]],RANK(tbl_pozice[[#This Row],[los nenasazenych]],tbl_pozice[los nenasazenych])+rg_počet_nasazených),0)","v":0},{"$f":"IFERROR(VLOOKUP(tbl_pozice[[#This Row],[rank = '# hrace]],tbl_seznam_hracu[],2,0),0)","v":0}]
[50,null,false,10,{"$f":"IF(tbl_pozice[[#This Row],[skupina]]<=rg_pocet_skupin,rg_pocet_skupin-tbl_pozice[[#This Row],[skupina]]+1,\"N/A\")","v":"N/A"},{"$f":"IF(rg_počet_5_ti_členných_skupin>=E51,TRUE,FALSE)","v":false},0.93749663428987351,{"$f":"IF(AND(tbl_pozice[[#This Row],[obsazovana pozice]],NOT(tbl_pozice[[#This Row],[nasazeni]])),tbl_pozice[[#This Row],[los]],0)","v":0},{"$f":"IF(tbl_pozice[[#This Row],[obsazovana pozice]],IF(tbl_pozice[[#This Row],[nasazeni]],tbl_pozice[[#This Row],['# nasazeneho]],RANK(tbl_pozice[[#This Row],[los nenasazenych]],tbl_pozice[los nenasazenych])+rg_počet_nasazených),0)","v":0},{"$f":"IFERROR(VLOOKUP(tbl_pozice[[#This Row],[rank = '# hrace]],tbl_seznam_hracu[],2,0),0)","v":0}]

{"sheet":"Tabulky","index":2,"n_rows":69,"n_cols":9,"rows_kept":69,"cut":false,"hidden":false,"merged":[]}
[0]
["Skupina A - kurt ",null,"Jelínková Adéla","Marešová Beata","Slavíková Tereza","Jiráková Sofie","Pořadí","Počet vítězství"]
["A1","Jelínková Adéla",null,"4-0","4-0","4-0","1.","3"]
["A2","Marešová Beata","0-4",null,"4-1","4-3","2.","2"]
["A3","Slavíková Tereza","0-4","1-4",null,"2-4","4.","0"]
["A4","Jiráková Sofie","0-4","3-4","4-2",null,"3.","1"]
[]
["Skupina B -  kurt ",null,"Tománková Denisa","Michna Lisa","Kolářová Viktorie","Krejčíková Viktorie","Mottlová Sofie","Pořadí","Počet vítězství"]
["B1","Tománková Denisa",null,"4-1","4-0","2-4","1-4","3.","2"]
["B2","Michna Lisa","1-4",null,"4-0","0-4","0-4","4.","1"]
["B3","Kolářová Viktorie","0-4","0-4",null,"0-4","1-4","5.","0"]
["B4","Krejčíková Viktorie","4-2","4-0","4-0",null,"4-3","1.","4"]
["B5","Mottlová Sofie","4-1","4-0","4-1","3-4",null,"2.","3"]
[]
["Skupina C - kurt ",null,"Pěnčíková Tereza","Hadrabová Radka","Gabrielová Edita Luisa","Halfarová Eva","Farajpourová Aináz","Pořadí","Počet vítězství"]
["C1","Pěnčíková Tereza",null,"4-2","4-3","4-0","4-1","1.","4"]
["C2","Hadrabová Radka","2-4",null,"4-1","4-2","3-4","3.","2"]
["C3","Gabrielová Edita Luisa","3-4","1-4",null,"3-4","1-4","5.","0"]
["C4","Halfarová Eva","0-4","2-4","4-3",null,"1-4","4.","1"]
["C5","Farajpourová Aináz","1-4","4-3","4-1","4-1",null,"2.","3"]
[]
["Skupina D - kurt ",null,0,0,0,0,0,"Pořadí","Počet vítězství"]
["D1",0,null,"4-2","4-0","4-0",0,"1.","3"]
["D2",0,"2-4",null,"4-2","1-4",0,"3.","1"]
["D3",0,"0-4","2-4",null,"0-4",0,"4.","0"]
["D4",0,"0-4","4-1","4-0",null,0,"2.","2"]
["D5",0]
[]
["Skupina E - kurt",null,0,0,0,0,0,"Pořadí","Počet vítězství"]
["E1",0,null,"4-0","4-0","4-0","4-1","1.","4"]
["E2",0,"0-4",null,"4-1","4-0","4-3","2.","3"]
["E3",0,"0-4","1-4",null,"4-0","0-4","4.","1"]
["E4",0,"0-4","0-4","0-4",null,"0-4","5.","0"]
["E5",0,"1-4","3-4","4-0","4-0",null,"3.","2"]
[]
["Skupina F - kurt",null,0,0,0,0,0,"Pořadí","Počet vítězství"]
["F1",0,null,0,0,0,0]
["F2",0,null,null,0,0,0]
["F3",0,null,null,null,0,0]
["F4",0,null,null,null,null,0]
["F5",0]
[]
["Skupina G - kurt ",null,0,0,0,0,0,"Pořadí","Počet vítězství"]
["G1",0,null,0,0,0,0]
["G2",0,null,null,0,0,0]
["G3",0,null,null,null,0,0]
["G4",0,null,null,null,null,0]
["G5",0]
[]
["Skupina H - kurt ",null,0,0,0,0,0,"Pořadí","Počet vítězství"]
["H1",0,null,0,0,0,0]
["H2",0,null,null,0,0,0]
["H3",0,null,null,null,0,0]
["H4",0,null,null,null,null,0]
["H5",0]
[]
["Skupina I - kurt ",null,0,0,0,0,0,"Pořadí","Počet vítězství"]
["I1",0,null,0,0,0,0]
["I2",0,null,null,0,0,0]
["I3",0,null,null,null,0,0]
["I4",0,null,null,null,null,0]
["I5",0]
[]
["Skupina J - kurt ",null,0,0,0,0,0,"Pořadí","Počet vítězství"]
["J1",0,null,0,0,0,0]
["J2",0,null,null,0,0,0]
["J3",0,null,null,null,0,0]
["J4",0,null,null,null,null,0]
["J5",0]

{"sheet":"Pavouk","index":3,"n_rows":30,"n_cols":4,"rows_kept":30,"cut":false,"hidden":false,"merged":[]}
[]
[]
[]
[]
[]
[null,null,"Jelínková Adéla"]
[]
[]
[]
[null,null,null,"Jelíková Adéla"]
[null,null,null,"4.2"]
[null,"Pěnčíková Tereza"]
[]
[null,null,"Pěnčíková Tereza"]
[null,null,"4-3"]
[null,"Mottlová Sofie"]
[]
[null,null,null,"Farajpourová Aináz"]
[null,null,null,"4-0"]
[null,"Marešová Beata"]
[]
[null,null,"Farajpourová Aináz"]
[null,null,"4-2"]
[null,"Farajpourová Aináz"]
[]
[null,null,null,"Farajpourová Aináz"]
[]
[]
[]
[null,null,"Krejčíková Viktorie"]

{"sheet":"Pořadí","index":4,"n_rows":61,"n_cols":8,"rows_kept":61,"cut":false,"hidden":false,"merged":[[0,0,0,7]]}
["POŘADÍ - SPARTA HEAD BABYTENIS TOUR ZIMA 2020 - DÍVKY"]
[]
[]
[]
[]
[]
[]
[]
[]
[]
[]
[]
[]
[]
[]
[]
[]
[]
[]
[]
[]
[]
[]
["Pořadí","Příjmení","1. turnaj","2. turnaj","3. turnaj","4. turnaj","Masters","Celkem"]
["1.","Jelínková Adéla",100,300,300,250,null,{"$f":"SUM(C25:G25)","v":950}]
["2.","Farajpourová Aináz",200,100,100,300,null,{"$f":"SUM(C26:G26)","v":700}]
["3.","Pěnčíková Tereza",250,200,0,200,null,650]
["4.","Krejčíková Viktorie",50,100,250,200,null,{"$f":"SUM(C28:G28)","v":600}]
["5.","Tománková Denisa",300,250,0,20,null,570]
["6.","Mottlová Sofie",200,200,0,100,null,500]
["7.","Michna Lisa",100,100,200,10,null,{"$f":"SUM(C31:G31)","v":410}]
["8.","Staňková Laura",100,100,100,0,null,{"$f":"SUM(C32:G32)","v":300}]
["9.","Hadrabová Radka",0,20,200,20,null,{"$f":"SUM(C33:G33)","v":240}]
["10.","Halfarová Eva",0,50,100,10,null,{"$f":"SUM(C34:G34)","v":160}]
["11.","Marešová Beata",20,0,20,100,null,{"$f":"SUM(C35:G35)","v":140}]
[12,"Slavíková Tereza",20,0,100,10,null,{"$f":"SUM(C36:G36)","v":130}]
["13.-14","Tvrzská Amélie",50,50,20,0,null,{"$f":"SUM(C37:G37)","v":120}]
[null,"Blažková Barbora",50,20,50,0,null,{"$f":"SUM(C38:G38)","v":120}]
["15.","Drábová Sára",100,0,0,0,null,{"$f":"C39+D39","v":100}]
["16.","Střihavková Nela",50,20,20,0,null,{"$f":"SUM(C40:G40)","v":90}]
["17.","Svoboda Adéla",50,10,10,0,null,{"$f":"SUM(C41:G41)","v":70}]
["18.-19.","Ježek Kristýna",50,0,0,0,null,{"$f":"C42+D42","v":50}]
[null,"Nováková Simona",0,0,50,0,null,{"$f":"SUM(C43:G43)","v":50}]
["20.","Petrásek Ella Martina",20,5,20,0,null,{"$f":"SUM(C44:G44)","v":45}]
["20.-21.","Fikáčková Andrea",20,20,0,0,null,{"$f":"C45+D45","v":40}]
[null,"Kolářová Viktorie",20,5,10,5,null,{"$f":"SUM(C46:G46)","v":40}]
["23.-24.","Nuslová Amélie",20,10,0,0,null,{"$f":"C47+D47","v":30}]
[null,"Faltysová Gabriela",10,20,0,0,null,{"$f":"C48+D48","v":30}]
["25.-26.","Hrnčířová Anna",5,10,10,0,null,{"$f":"SUM(C49:G49)","v":25}]
[null,"Gabrielová Edita Luisa",20,0,0,5,null,25]
["27.-31.","Burešová Karolína",10,10,0,0,null,{"$f":"C51+D51","v":20}]
[null,"Andrlová Katka",10,5,5,0,null,{"$f":"SUM(C52:G52)","v":20}]
[null,"Fáčková Tereza",10,0,10,0,null,{"$f":"SUM(C53:G53)","v":20}]
[null,"Ulich Viktorie",0,0,20,0,null,{"$f":"SUM(C54:G54)","v":20}]
[null,"Jiráková Sofie",0,0,0,20,null,20]
["32.-36.","Polnická Sofie",10,0,0,0,null,{"$f":"C56+D56","v":10}]
[null,"Datlová Tina",10,0,0,0,null,{"$f":"C57+D57","v":10}]
[null,"Taussig Tamar",10,0,0,0,null,{"$f":"C58+D58","v":10}]
[null,"Altmann Amelie",0,10,0,0,null,{"$f":"C59+D59","v":10}]
[null,"Piovarči Emily",0,0,10,0,null,{"$f":"SUM(C60:G60)","v":10}]
["37.","Komárková Adéla",5,0,0,0,null,{"$f":"C61+D61","v":5}]